bitfinex/quotes_BTCUSD_20240811
["timestamp","ask_amount","ask_price","bid_price","bid_amount"]
[1723359724148,2.24098392,61212.0,61211.0,1.96532314]
[1723359724384,2.24098392,61212.0,61211.0,1.97932314]
[1723359724587,2.22682392,61212.0,61211.0,2.22204014]
[1723359725188,2.22682392,61212.0,61211.0,2.24078014]
[1723359725535,2.22682392,61212.0,61211.0,2.25478014]
[1723359725673,2.22682392,61212.0,61211.0,1.99680297]
[1723359725874,2.22682392,61212.0,61211.0,1.98280297]
[1723359726275,2.22682392,61212.0,61211.0,1.96880297]
[1723359726477,2.22682392,61212.0,61211.0,1.98280297]
[1723359726935,2.22682392,61212.0,61211.0,1.96826536]
[1723359727160,2.22682392,61212.0,61211.0,1.98226536]
[1723359727379,2.19390392,61212.0,61211.0,2.21098236]
[1723359727853,2.19390392,61212.0,61211.0,2.22498236]
[1723359728061,2.19390392,61212.0,61211.0,2.24023746]
[1723359728236,2.19390392,61212.0,61211.0,2.30863746]
[1723359728433,2.19390392,61212.0,61211.0,2.32263746]
[1723359728651,2.13103392,61212.0,61211.0,3.48658236]
[1723359728855,2.13103392,61212.0,61211.0,3.75072594]
[1723359728856,2.02308724,61212.0,61211.0,3.75072594]
[1723359729078,1.97540224,61212.0,61211.0,3.75072594]
[1723359729324,1.97540224,61212.0,61211.0,3.68232594]
[1723359729467,1.96550224,61212.0,61211.0,3.75071386]
[1723359730357,1.96550224,61212.0,61211.0,3.75526496]
[1723359733650,1.96550224,61212.0,61211.0,3.87729571]
[1723359733852,1.96550224,61212.0,61211.0,3.75526496]
[1723359734059,1.96097006,61212.0,61211.0,3.8773033]
[1723359734451,1.96097006,61212.0,61211.0,3.75526496]
[1723359734653,1.96097006,61212.0,61211.0,3.68777949]
[1723359734859,1.92825006,61212.0,61211.0,3.75558757]
[1723359735066,1.90588871,61212.0,61211.0,3.75558757]
[1723359735290,1.90020355,61212.0,61211.0,3.75558682]
[1723359735717,1.85308274,61212.0,61211.0,3.75558682]
[1723359735930,1.85308274,61212.0,61211.0,3.68777949]
[1723359736158,1.85308274,61212.0,61211.0,3.7555868]
[1723359736578,1.85308274,61212.0,61211.0,3.87761467]
[1723359736809,1.85308274,61212.0,61211.0,3.7555868]
[1723359737471,1.85308274,61212.0,61211.0,3.87761833]
[1723359738570,1.85308274,61212.0,61211.0,3.40617073]
[1723359738779,1.79350274,61212.0,61211.0,3.8769908]
[1723359738948,1.79350274,61212.0,61211.0,3.75493552]
[1723359739378,1.79350274,61212.0,61211.0,3.43581852]
[1723359739580,1.79350274,61212.0,61211.0,3.56578129]
[1723359739783,1.77975267,61212.0,61211.0,3.58578129]
[1723359740192,1.77975267,61212.0,61211.0,3.56578129]
[1723359740566,1.77975267,61212.0,61211.0,3.48708129]
[1723359740991,1.77975267,61212.0,61211.0,3.47708362]
[1723359741200,1.84525267,61212.0,61211.0,3.28208683]
[1723359741358,1.92535267,61212.0,61211.0,2.91808992]
[1723359741558,1.92535267,61212.0,61211.0,2.9913424]
[1723359741803,1.92535267,61212.0,61211.0,2.99113928]
[1723359741976,1.92535267,61212.0,61211.0,2.85640602]
[1723359742284,1.92535267,61212.0,61211.0,2.96814]
[1723359742646,1.92535267,61212.0,61211.0,2.89494822]
[1723359742827,1.92535267,61212.0,61211.0,2.96220822]
[1723359743607,1.92535267,61212.0,61211.0,2.98520822]
[1723359744003,1.92535267,61212.0,61211.0,1.72360822]
[1723359746298,1.92535267,61212.0,61211.0,1.55429553]
[1723359746500,1.92535267,61212.0,61211.0,1.72385157]
[1723359746725,1.92535267,61212.0,61211.0,1.55429553]
[1723359746941,1.92535267,61212.0,61211.0,1.72385157]
[1723359747943,1.92535267,61212.0,61211.0,1.72384368]
[1723359753501,1.92535267,61212.0,61211.0,1.65602127]
[1723359753679,1.92535267,61212.0,61211.0,1.7238138]
[1723359757280,1.92535267,61212.0,61211.0,1.41930203]
[1723359757470,1.92535267,61212.0,61211.0,1.72358804]
[1723359757665,1.92535267,61212.0,61211.0,1.35148077]
[1723359758045,1.92535267,61212.0,61211.0,1.72357842]
[1723359758388,1.85985267,61212.0,61211.0,1.72357842]
[1723359758591,1.77975267,61212.0,61211.0,1.86667842]
[1723359758792,1.77975267,61212.0,61211.0,2.04282734]
[1723359758993,1.77975267,61212.0,61211.0,2.04482734]
[1723359759423,1.77975267,61212.0,61211.0,2.04282734]
[1723359760025,1.77975267,61212.0,61211.0,2.09163086]
[1723359760527,1.77975267,61212.0,61211.0,2.04282734]
[1723359760927,1.77975267,61212.0,61211.0,2.0426555]
[1723359762370,1.77975267,61212.0,61211.0,2.09145902]
[1723359763308,1.77975267,61212.0,61211.0,2.0426555]
[1723359765622,1.77975267,61212.0,61211.0,2.0626555]
[1723359766628,1.77975267,61212.0,61211.0,2.0426555]
[1723359767909,1.77975267,61212.0,61211.0,2.07244025]
[1723359768108,1.77975267,61212.0,61211.0,2.07241852]
[1723359768465,1.77975267,61212.0,61211.0,2.00067806]
[1723359768642,1.77975267,61212.0,61211.0,2.24781639]
[1723359768810,1.77975267,61212.0,61211.0,2.22781639]
[1723359769027,1.77975267,61212.0,61211.0,2.29621639]
[1723359769220,1.77975267,61212.0,61211.0,2.24385156]
[1723359769559,1.77975267,61212.0,61211.0,2.29265972]
[1723359769776,1.77975267,61212.0,61211.0,2.24385759]
[1723359770964,1.77975267,61212.0,61211.0,2.29266191]
[1723359771750,1.77975267,61212.0,61211.0,2.16550489]
[1723359772062,1.77975267,61212.0,61211.0,2.23390489]
[1723359772397,1.77975267,61212.0,61211.0,2.28270921]
[1723359772721,1.77975267,61212.0,61211.0,2.29249375]
[1723359772891,1.77975267,61212.0,61211.0,2.23390489]
[1723359773253,1.77975267,61212.0,61211.0,2.28270921]
[1723359773454,1.77975267,61212.0,61211.0,2.26187665]
[1723359773879,1.77975267,61212.0,61211.0,2.27166119]
[1723359774629,1.77975267,61212.0,61211.0,2.27166156]
[1723359775165,1.77975267,61212.0,61211.0,1.72398681]
[1723359775398,1.77975267,61212.0,61211.0,2.2131197]
[1723359775547,1.77975267,61212.0,61211.0,2.22290395]
[1723359775755,1.77975267,61212.0,61211.0,2.27171178]
[1723359776414,1.77975267,61212.0,61211.0,2.27171224]
[1723359777430,1.77975267,61212.0,61211.0,2.2458601]
[1723359777633,1.73792009,61212.0,61211.0,2.2678601]
[1723359777816,1.71665474,61212.0,61211.0,2.2678601]
[1723359778020,1.68287474,61212.0,61211.0,2.34107581]
[1723359778675,1.64890474,61212.0,61211.0,2.56979281]
[1723359778872,1.64890474,61212.0,61211.0,2.17507201]
[1723359779246,1.64890474,61212.0,61211.0,2.00553476]
[1723359779789,1.64890474,61212.0,61211.0,1.93231271]
[1723359780167,1.64890474,61212.0,61211.0,1.86449769]
[1723359780586,1.64890474,61212.0,61211.0,1.72992212]
[1723359781159,1.64890474,61212.0,61211.0,1.70992212]
[1723359781530,1.64890474,61212.0,61211.0,1.77773684]
[1723359781730,1.64890474,61212.0,61211.0,1.91318569]
[1723359781953,1.64890474,61212.0,61211.0,1.93318569]
[1723359782150,1.64890474,61212.0,61211.0,1.91318569]
[1723359782351,1.64890474,61212.0,61211.0,1.77773684]
[1723359782551,1.64890474,61212.0,61211.0,1.79773684]
[1723359782691,1.64890474,61212.0,61211.0,1.99713399]
[1723359783951,1.62022076,61212.0,61211.0,1.99713399]
[1723359784417,1.62022076,61212.0,61211.0,1.99085434]
[1723359784611,1.62022076,61212.0,61211.0,1.99714595]
[1723359785319,1.62022076,61212.0,61211.0,2.13243038]
[1723359786278,1.62022076,61212.0,61211.0,1.82760754]
[1723359786481,1.62022076,61212.0,61211.0,1.86525171]
[1723359786720,1.62022076,61212.0,61211.0,1.9629746]
[1723359787671,1.62022076,61212.0,61211.0,1.86525171]
[1723359787872,1.62022076,61212.0,61211.0,2.03195895]
[1723359788080,1.62022076,61212.0,61211.0,1.8966241]
[1723359788197,1.62022076,61212.0,61211.0,2.15401479]
[1723359788397,1.62022076,61212.0,61211.0,2.32355196]
[1723359788732,1.52394076,61212.0,61211.0,2.43017714]
[1723359789057,1.42004262,61212.0,61211.0,2.55226896]
[1723359789292,1.35230262,61212.0,61211.0,2.38561452]
[1723359790042,1.33330262,61212.0,61211.0,2.45342616]
[1723359790713,1.33330262,61212.0,61211.0,2.33129876]
[1723359791039,1.32066033,61212.0,61211.0,2.33129876]
[1723359791243,1.32066033,61212.0,61211.0,2.12818825]
[1723359791583,1.32066033,61212.0,61211.0,2.33132048]
[1723359793109,1.30666033,61212.0,61211.0,2.33132048]
[1723359793447,1.30230491,61212.0,61211.0,2.33132048]
[1723359793784,1.0581432,61212.0,61211.0,2.33132048]
[1723359793989,0.96160629,61212.0,61211.0,2.49804187]
[1723359794210,0.96160629,61212.0,61211.0,2.48404187]
[1723359794883,0.81823684,61212.0,61211.0,2.49804014]
[1723359795222,0.81823684,61212.0,61211.0,3.75964014]
[1723359795400,0.81823684,61212.0,61211.0,3.8478832]
[1723359796186,0.81823684,61212.0,61211.0,3.8618832]
[1723359796457,0.80781684,61212.0,61211.0,3.8478832]
[1723359796888,0.79281684,61212.0,61211.0,3.8478832]
[1723359797082,0.79281684,61212.0,61211.0,3.8618832]
[1723359797780,0.78781684,61212.0,61211.0,3.8618832]
[1723359798350,0.74426684,61212.0,61211.0,3.55927709]
[1723359798553,0.71159384,61212.0,61211.0,3.87120924]
[1723359798756,0.71159384,61212.0,61211.0,3.85720924]
[1723359798757,0.67309785,61212.0,61211.0,3.85720924]
[1723359798964,0.67309785,61212.0,61211.0,3.84320924]
[1723359799165,0.67309785,61212.0,61211.0,3.85720924]
[1723359799382,0.66267785,61212.0,61211.0,3.87120924]
[1723359799544,0.66267785,61212.0,61211.0,3.84320924]
[1723359799745,0.63027785,61212.0,61211.0,3.85720924]
[1723359800062,0.63027785,61212.0,61211.0,3.87120924]
[1723359800672,0.62542359,61212.0,61211.0,3.87120924]
[1723359800868,0.62542359,61212.0,61211.0,3.86143]
[1723359801449,0.59142359,61212.0,61211.0,3.87120848]
[1723359801631,0.59142359,61212.0,61211.0,3.80280848]
[1723359801814,0.59142359,61212.0,61211.0,3.7597222]
[1723359803078,0.57942359,61212.0,61211.0,3.7597222]
[1723359803249,0.57942359,61212.0,61211.0,3.75922029]
[1723359803456,0.56901359,61212.0,61211.0,3.75922029]
[1723359803858,0.53701359,61212.0,61211.0,3.75922029]
[1723359804830,0.53701359,61212.0,61211.0,3.87070864]
[1723359805229,0.53701359,61212.0,61211.0,3.80230864]
[1723359805595,0.53701359,61212.0,61211.0,3.22025108]
[1723359805727,0.53701359,61212.0,61211.0,3.86970037]
[1723359805914,0.53693191,61212.0,61211.0,3.86970037]
[1723359806121,0.53693191,61212.0,61211.0,3.56906295]
[1723359806324,0.52711426,61212.0,61211.0,3.86970255]
[1723359807085,0.52711426,61212.0,61211.0,3.8599669]
[1723359807458,0.52711426,61212.0,61211.0,3.5209349]
[1723359807662,0.52711426,61212.0,61211.0,3.85996776]
[1723359808677,0.52711426,61212.0,61211.0,4.11424346]
[1723359809267,0.51670426,61212.0,61211.0,4.11424346]
[1723359809474,0.51670426,61212.0,61211.0,4.53806901]
[1723359810533,0.49237294,61212.0,61211.0,4.28379242]
[1723359810943,0.49237294,61212.0,61211.0,4.53807214]
[1723359812381,0.49237294,61212.0,61211.0,3.27647214]
[1723359812538,0.49237294,61212.0,61211.0,3.02219242]
[1723359812959,0.49237294,61212.0,61211.0,2.85299387]
[1723359813164,0.49237294,61212.0,61211.0,2.92080179]
[1723359813365,0.49237294,61212.0,61211.0,3.02251367]
[1723359815607,0.49237294,61212.0,61211.0,2.59871936]
[1723359815810,0.49237294,61212.0,61211.0,2.49700748]
[1723359816260,0.56997294,61212.0,61211.0,2.01179048]
[1723359816382,0.56997294,61212.0,61211.0,2.07019048]
[1723359816742,0.56997294,61212.0,61211.0,2.06944481]
[1723359817044,0.56997294,61212.0,61211.0,2.16714465]
[1723359817239,0.56997294,61212.0,61211.0,2.16719188]
[1723359817613,0.56997294,61212.0,61211.0,2.19019188]
[1723359817816,0.56997294,61212.0,61211.0,2.20019188]
[1723359818275,0.56997294,61212.0,61211.0,2.17219188]
[1723359818524,0.56997294,61212.0,61211.0,2.17219186]
[1723359818859,0.56997294,61212.0,61211.0,2.20019186]
[1723359819156,0.56997294,61212.0,61211.0,2.20020122]
[1723359819383,0.56997294,61212.0,61211.0,2.18620122]
[1723359819563,0.56997294,61212.0,61211.0,2.08849202]
[1723359819759,0.56997294,61212.0,61211.0,2.2344185]
[1723359819960,0.45716294,61212.0,61211.0,2.09049202]
[1723359820160,0.45716294,61212.0,61211.0,2.23262852]
[1723359820360,0.45716294,61212.0,61211.0,1.85678379]
[1723359820546,0.45716294,61212.0,61211.0,2.33698231]
[1723359820749,0.45716294,61212.0,61211.0,2.31698231]
[1723359820950,0.42640505,61212.0,61211.0,2.32719347]
[1723359821417,0.42640505,61212.0,61211.0,2.20505659]
[1723359821637,0.42640505,61212.0,61211.0,2.32719347]
[1723359823542,0.42640505,61212.0,61211.0,2.30719347]
[1723359823745,0.42640505,61212.0,61211.0,2.3072158]
[1723359823979,0.42640505,61212.0,61211.0,2.18505659]
[1723359824189,0.42640505,61212.0,61211.0,2.3072136]
[1723359824355,0.42640505,61212.0,61211.0,2.32721279]
[1723359825723,0.42640505,61212.0,61211.0,2.20505578]
[1723359825962,0.42640505,61212.0,61211.0,2.32721565]
[1723359826147,0.42640505,61212.0,61211.0,2.37081565]
[1723359827813,0.42640505,61212.0,61211.0,2.06681061]
[1723359828022,0.42640505,61212.0,61211.0,2.37132167]
[1723359828418,0.42640505,61212.0,61211.0,2.24916637]
[1723359828664,0.42640505,61212.0,61211.0,2.54086812]
[1723359828994,0.42640505,61212.0,61211.0,2.41870068]
[1723359829135,0.42640505,61212.0,61211.0,2.41670068]
[1723359829335,0.42640505,61212.0,61211.0,2.47526812]
[1723359829739,0.42640505,61212.0,61211.0,2.35310068]
[1723359829941,0.42640505,61212.0,61211.0,2.35510068]
[1723359831557,0.42640505,61212.0,61211.0,2.35513765]
[1723359831781,0.42640505,61212.0,61211.0,2.37513765]
[1723359831955,0.42640505,61212.0,61211.0,2.35513765]
[1723359832803,0.39285614,61212.0,61211.0,2.36492692]
[1723359834234,0.39285614,61212.0,61211.0,2.47731436]
[1723359834573,0.39285614,61212.0,61211.0,2.47531436]
[1723359834773,0.39285614,61212.0,61211.0,2.35313765]
[1723359834990,0.39285614,61212.0,61211.0,2.39531463]
[1723359835654,0.53765614,61212.0,61211.0,2.15738032]
[1723359835859,0.53765614,61212.0,61211.0,2.10360334]
[1723359838072,0.53765614,61212.0,61211.0,2.09360334]
[1723359839034,0.53765614,61212.0,61211.0,2.03564334]
[1723359839235,0.53765614,61212.0,61211.0,2.10345875]
[1723359839639,0.53765614,61212.0,61211.0,2.1034588]
[1723359839873,0.53765614,61212.0,61211.0,2.0250588]
[1723359840174,0.53765614,61212.0,61211.0,2.0934588]
[1723359840529,0.53765614,61212.0,61211.0,2.16676543]
[1723359840883,0.53765614,61212.0,61211.0,1.86549471]
[1723359841126,0.53765614,61212.0,61211.0,2.09393929]
[1723359841317,0.53765614,61212.0,61211.0,1.87402644]
[1723359841526,0.53765614,61212.0,61211.0,1.82514988]
[1723359842217,0.53765614,61212.0,61211.0,1.65561131]
[1723359842529,0.53765614,61212.0,61211.0,1.87403906]
[1723359842729,0.53765614,61212.0,61211.0,2.00788712]
[1723359844834,0.53765614,61212.0,61211.0,1.95901056]
[1723359845282,0.53765614,61212.0,61211.0,2.00788712]
[1723359845558,0.53765614,61212.0,61211.0,1.95901056]
[1723359845713,0.39285614,61212.0,61211.0,1.95901056]
[1723359845920,0.39285614,61212.0,61211.0,1.95984729]
[1723359849446,0.39285614,61212.0,61211.0,1.65726439]
[1723359849649,0.39285614,61212.0,61211.0,1.9594926]
[1723359850009,0.39285614,61212.0,61211.0,1.78997872]
[1723359850204,0.39285614,61212.0,61211.0,1.95952991]
[1723359850399,0.39285614,61212.0,61211.0,2.06173814]
[1723359850557,0.39285614,61212.0,61211.0,1.95952991]
[1723359850767,0.47215614,61212.0,61211.0,1.95952991]
[1723359851521,0.47215614,61212.0,61211.0,2.06173814]
[1723359852271,0.53285614,61212.0,61211.0,1.33369591]
[1723359852455,0.53285614,61212.0,61211.0,0.9973044]
[1723359852653,0.53285614,61212.0,61211.0,0.92948393]
[1723359853087,0.53285614,61212.0,61211.0,0.78005873]
[1723359853214,0.53285614,61212.0,61211.0,0.90172031]
[1723359853423,0.53285614,61212.0,61211.0,1.01572031]
[1723359853621,0.71561214,61212.0,61211.0,0.17111339]
[1723359853825,1.17303814,61212.0,61211.0,0.17111339]
[1723359854027,1.17303814,61212.0,61211.0,0.15711339]
[1723359854248,1.17303814,61212.0,61211.0,0.0151602]
[1723359854249,1.2220013,61212.0,61211.0,0.0151602]
[1723359854410,1.22705645,61212.0,61211.0,0.0291602]
[1723359854606,1.25157132,61212.0,61211.0,0.0151602]
[1723359854814,0.99834456,61212.0,61211.0,0.0151602]
[1723359855065,0.99834456,61212.0,61211.0,0.0291602]
[1723359855267,1.00325612,61212.0,61211.0,0.0151602]
[1723359855528,0.94432514,61212.0,61211.0,0.0151602]
[1723359855930,0.94432514,61212.0,61211.0,0.0011602]
[1723359856242,0.94432514,61212.0,61211.0,0.0061602]
[1723359856649,0.94432514,61212.0,61211.0,0.0011602]
[1723359857045,0.94532514,61212.0,61211.0,0.0011602]
[1723359857247,0.87692514,61212.0,61211.0,0.0011602]
[1723359857453,0.71561214,61212.0,61211.0,0.0011602]
[1723359857861,0.71561214,61212.0,61211.0,0.00639644]
[1723359858096,0.71561214,61212.0,61211.0,0.0011602]
[1723359859453,0.71661214,61212.0,61211.0,0.0011602]
[1723359859856,0.71661214,61212.0,61211.0,0.00639644]
[1723359860082,0.71561214,61212.0,61211.0,0.0011602]
[1723359860470,0.71661214,61212.0,61211.0,0.00639644]
[1723359860921,0.94532514,61212.0,61211.0,0.00639644]
[1723359861240,0.94532514,61212.0,61211.0,0.0011602]
[1723359862224,1.17403814,61212.0,61211.0,0.0011602]
[1723359862426,1.17403814,61212.0,61211.0,0.00643537]
[1723359862626,1.17403814,61212.0,61211.0,0.0011602]
[1723359870046,1.18403814,61212.0,61211.0,0.0011602]
[1723359870218,1.17403814,61212.0,61211.0,0.0011602]
[1723359870614,1.18403814,61212.0,61211.0,0.0011602]
[1723359871185,1.17403814,61212.0,61211.0,0.0011602]
[1723359872323,1.18403814,61212.0,61211.0,0.0011602]
[1723359872523,1.41275114,61212.0,61211.0,0.0011602]
[1723359872977,2.08275114,61212.0,61211.0,0.0011602]
[1723359873143,2.07275114,61212.0,61211.0,0.0011602]
[1723359873614,1.77563814,61212.0,61211.0,0.0011602]
[1723359873791,1.84403814,61212.0,61211.0,0.0011602]
[1723359879303,1.84912672,61212.0,61211.0,0.0011602]
[1723359880340,0.34308,61210.0,61209.0,0.00039224]
[1723359881206,0.34816857,61210.0,61209.0,0.00039224]
[1723359881886,0.34816857,61210.0,61209.0,0.00239224]
[1723359885328,0.34816858,61210.0,61209.0,0.00239224]
[1723359886255,0.41656858,61210.0,61209.0,0.00239224]
[1723359887465,0.34816858,61210.0,61209.0,0.00239224]
[1723359887670,0.18784858,61210.0,61209.0,0.14249224]
[1723359888446,0.18784858,61210.0,61209.0,0.00865227]
[1723359888639,0.07348858,61210.0,61209.0,0.00865227]
[1723359888795,0.18784858,61210.0,61209.0,0.00865227]
[1723359892362,0.18276,61210.0,61209.0,0.14434342]
[1723359892560,0.18784841,61210.0,61209.0,0.00865227]
[1723359892776,0.18276,61210.0,61209.0,0.00865227]
[1723359892985,0.18784841,61210.0,61209.0,0.00865227]
[1723359895415,0.18784841,61210.0,61209.0,0.14434343]
[1723359895945,0.07348841,61210.0,61209.0,0.14434343]
[1723359896118,0.18784831,61210.0,61209.0,0.14434343]
[1723359897106,0.18784831,61210.0,61209.0,0.14384343]
[1723359898214,0.00508831,61210.0,61209.0,0.79084435]
[1723359898391,0.000832,61211.0,61210.0,0.25446]
[1723359898593,0.000832,61211.0,61210.0,0.81090074]
[1723359899428,0.04986439,61211.0,61210.0,1.03962074]
[1723359899628,0.04986439,61211.0,61210.0,1.13960934]
[1723359900845,0.04986439,61211.0,61210.0,0.91088934]
[1723359901044,0.04986445,61211.0,61210.0,0.91088934]
[1723359901678,0.04986445,61211.0,61210.0,0.65916934]
[1723359901881,0.04986445,61211.0,61210.0,0.24089442]
[1723359902083,0.000832,61211.0,61210.0,0.10521466]
[1723359902282,0.36823985,61211.0,61210.0,0.24090024]
[1723359902484,0.00592021,61211.0,61210.0,0.24090024]
[1723359902686,0.000832,61211.0,61210.0,0.24090024]
[1723359902947,0.00592021,61211.0,61210.0,0.24090024]
[1723359904757,0.07436965,61211.0,61210.0,0.24090024]
[1723359904914,0.07945785,61211.0,61210.0,0.24090024]
[1723359905123,0.07436965,61211.0,61210.0,0.24190024]
[1723359905555,0.46120264,61211.0,61210.0,0.2448989]
[1723359905756,0.07436662,61211.0,61210.0,0.2448989]
[1723359905936,0.07436662,61211.0,61210.0,0.10921466]
[1723359906137,0.46119482,61211.0,61210.0,0.104]
[1723359906763,0.46628308,61211.0,61210.0,0.21836]
[1723359907377,0.46628308,61211.0,61210.0,0.21736]
[1723359907580,0.36823623,61211.0,61210.0,0.21736]
[1723359907961,0.36823623,61211.0,61210.0,0.21436]
[1723359908156,0.36823623,61211.0,61210.0,0.1]
[1723359908357,0.36823623,61211.0,61210.0,0.00719383]
[1723359908566,0.46628308,61211.0,61210.0,0.00719383]
[1723359910081,0.46628312,61211.0,61210.0,0.00719383]
[1723359910311,0.46629065,61211.0,61210.0,0.00719383]
[1723359912770,0.07945035,61211.0,61210.0,0.25724189]
[1723359912970,0.07945035,61211.0,61210.0,0.35724189]
[1723359913904,0.07436205,61211.0,61210.0,0.22155383]
[1723359914115,0.07945021,61211.0,61210.0,0.35723835]
[1723359914434,0.07945021,61211.0,61210.0,0.35723864]
[1723359914435,0.07945023,61211.0,61210.0,0.35723864]
[1723359914662,0.07945023,61211.0,61210.0,0.24287864]
[1723359914901,0.10396429,61211.0,61210.0,0.24287864]
[1723359915031,0.07944631,61211.0,61210.0,0.24287864]
[1723359915431,0.07944854,61211.0,61210.0,0.24287915]
[1723359915625,0.00592018,61211.0,61210.0,0.24287915]
[1723359916053,0.07944854,61211.0,61210.0,0.24287915]
[1723359916376,0.00592018,61211.0,61210.0,0.35723915]
[1723359916601,0.04984802,61211.0,61210.0,0.72425915]
[1723359917298,0.04984802,61211.0,61210.0,1.11679407]
[1723359917512,0.000832,61211.0,61210.0,1.13979407]
[1723359917739,0.000832,61211.0,61210.0,1.13978874]
[1723359921281,0.000832,61211.0,61210.0,1.13978832]
[1723359924652,0.000832,61211.0,61210.0,1.00410875]
[1723359924804,0.000832,61211.0,61210.0,1.13978831]
[1723359925231,0.000832,61211.0,61210.0,1.13978775]
[1723359928370,0.000832,61211.0,61210.0,1.13978705]
[1723359931918,0.000832,61211.0,61210.0,1.13978693]
[1723359935824,0.000832,61211.0,61210.0,1.00410875]
[1723359936033,0.000832,61211.0,61210.0,1.13978636]
[1723359939142,0.000832,61211.0,61210.0,1.13977246]
[1723359939339,0.000832,61211.0,61210.0,1.36849246]
[1723359940600,0.000832,61211.0,61210.0,1.36649246]
[1723359940859,0.000832,61211.0,61210.0,1.37249246]
[1723359941362,0.000832,61211.0,61210.0,1.36649246]
[1723359941535,0.000832,61211.0,61210.0,1.37449246]
[1723359942254,0.000832,61211.0,61210.0,1.38049246]
[1723359944952,0.000832,61211.0,61210.0,1.44832128]
[1723359946033,0.000832,61211.0,61210.0,1.6178902]
[1723359946439,0.000832,61211.0,61210.0,1.44832128]
[1723359946657,0.000832,61211.0,61210.0,1.61789062]
[1723359946840,0.000832,61211.0,61210.0,1.61788151]
[1723359947053,0.000832,61211.0,61210.0,1.44831265]
[1723359953555,0.000832,61211.0,61210.0,1.44831141]
[1723359954620,0.000832,61211.0,61210.0,1.84659864]
[1723359954836,0.000832,61211.0,61210.0,1.91499864]
[1723359955772,0.000832,61211.0,61210.0,2.07496224]
[1723359955921,0.000832,61211.0,61210.0,2.06896224]
[1723359956127,0.000832,61211.0,61210.0,2.08196224]
[1723359956323,0.000832,61211.0,61210.0,2.09596224]
[1723359956529,0.000832,61211.0,61210.0,2.06896224]
[1723359956773,0.000832,61211.0,61210.0,2.08196224]
[1723359957149,0.000832,61211.0,61210.0,2.08192049]
[1723359957389,0.000832,61211.0,61210.0,2.06892049]
[1723359957528,0.000832,61211.0,61210.0,2.01507371]
[1723359957729,0.000832,61211.0,61210.0,2.08289222]
[1723359957952,0.000832,61211.0,61210.0,2.10589222]
[1723359958160,0.000832,61211.0,61210.0,2.09289222]
[1723359958589,0.000832,61211.0,61210.0,2.10689222]
[1723359958762,0.000832,61211.0,61210.0,2.09289222]
[1723359958963,0.000832,61211.0,61210.0,2.07889222]
[1723359959175,0.000832,61211.0,61210.0,2.10689222]
[1723359959342,0.000832,61211.0,61210.0,2.09289222]
[1723359959554,0.000832,61211.0,61210.0,2.07889222]
[1723359959763,0.000832,61211.0,61210.0,2.09289222]
[1723359960115,0.000832,61211.0,61210.0,2.10689222]
[1723359960546,0.000832,61211.0,61210.0,1.56594875]
[1723359960690,0.000832,61211.0,61210.0,2.10694102]
[1723359961680,0.000832,61211.0,61210.0,2.09694102]
[1723359962091,0.000832,61211.0,61210.0,1.92895501]
[1723359962305,0.000832,61211.0,61210.0,1.86055501]
[1723359962537,0.000832,61211.0,61210.0,1.83255501]
[1723359962736,0.000832,61211.0,61210.0,1.80955501]
[1723359962994,0.000832,61211.0,61210.0,1.82355501]
[1723359963204,0.000832,61211.0,61210.0,1.82356628]
[1723359963412,0.000832,61211.0,61210.0,1.83756628]
[1723359963977,0.000832,61211.0,61210.0,1.86056628]
[1723359964186,0.000832,61211.0,61210.0,2.02870537]
[1723359964581,0.000832,61211.0,61210.0,2.02870503]
[1723359965207,0.000832,61211.0,61210.0,1.86056594]
[1723359965754,0.000832,61211.0,61210.0,1.57014594]
[1723359966002,0.000832,61211.0,61210.0,1.49354594]
[1723359966778,0.000832,61211.0,61210.0,1.35790657]
[1723359966933,0.000832,61211.0,61210.0,1.49355606]
[1723359967136,0.000832,61211.0,61210.0,1.49355609]
[1723359967742,0.000832,61211.0,61210.0,1.49356489]
[1723359968945,0.000832,61211.0,61210.0,1.50342629]
[1723359969551,0.000832,61211.0,61210.0,1.57952629]
[1723359969757,0.000832,61211.0,61210.0,1.74715009]
[1723359970153,0.000832,61211.0,61210.0,1.57952629]
[1723359970352,0.000832,61211.0,61210.0,1.74715009]
[1723359970637,0.000832,61211.0,61210.0,1.74693117]
[1723359973930,0.000832,61211.0,61210.0,1.81343117]
[1723359974157,0.000832,61211.0,61210.0,1.81370708]
[1723359977646,0.000832,61211.0,61210.0,1.51037392]
[1723359977843,0.000832,61211.0,61210.0,1.81367305]
[1723359978253,0.000832,61211.0,61210.0,1.81424884]
[1723359978485,0.000832,61211.0,61210.0,2.11079266]
[1723359981441,0.000832,61211.0,61210.0,2.11164871]
[1723359985705,0.000832,61211.0,61210.0,1.88292871]
[1723359985906,0.000832,61211.0,61210.0,1.81452871]
[1723359986152,0.000767,61211.0,61210.0,1.81452871]
[1723359987288,0.000767,61211.0,61210.0,2.04324871]
[1723359987994,0.000767,61211.0,61210.0,1.81452871]
[1723359988514,0.000767,61211.0,61210.0,1.27299015]
[1723359988677,0.000767,61211.0,61210.0,1.81435867]
[1723359989084,0.000767,61211.0,61210.0,2.1114677]
[1723359990528,0.000767,61211.0,61210.0,2.11147997]
[1723359990722,0.000767,61211.0,61210.0,2.26255403]
[1723359992286,0.000767,61211.0,61210.0,2.26252247]
[1723359994937,0.000767,61211.0,61210.0,2.32117147]
[1723359995157,0.000767,61211.0,61210.0,2.31138456]
[1723359995358,0.000767,61211.0,61210.0,2.32117074]
[1723359995899,0.000767,61211.0,61210.0,2.32110203]
[1723359997914,0.000767,61211.0,61210.0,2.3113157]
[1723359998292,0.000767,61211.0,61210.0,2.32110203]
[1723359998498,0.000767,61211.0,61210.0,2.3113157]
[1723359999185,0.000767,61211.0,61210.0,2.32110203]
[1723359999382,0.000767,61211.0,61210.0,2.15154489]
[1723359999624,0.000767,61211.0,61210.0,2.31134235]
[1723359999805,0.000767,61211.0,61210.0,2.0074487]
[1723360000051,0.000767,61211.0,61210.0,2.31140664]
[1723360001449,0.000767,61211.0,61210.0,2.31141457]
[1723360001845,0.000767,61211.0,61210.0,2.01429457]
[1723360002059,0.000767,61211.0,61210.0,1.77392519]
[1723360002247,0.000767,61211.0,61210.0,1.64870768]
[1723360002248,0.076167,61211.0,61210.0,1.64870768]
[1723360003059,0.076167,61211.0,61210.0,1.58088391]
[1723360003260,0.076167,61211.0,61210.0,1.64871222]
[1723360003461,0.076167,61211.0,61210.0,1.48042544]
[1723360003781,0.076167,61211.0,61210.0,1.50342544]
[1723360004655,0.076167,61211.0,61210.0,1.50434064]
[1723360005075,0.138367,61211.0,61210.0,1.50434064]
[1723360005276,0.138367,61211.0,61210.0,1.26695289]
[1723360005622,0.138367,61211.0,61210.0,1.25295289]
[1723360005824,0.138367,61211.0,61210.0,1.23895289]
[1723360006044,0.138367,61211.0,61210.0,1.24995289]
[1723360006252,0.138367,61211.0,61210.0,1.23895289]
[1723360006453,0.138367,61211.0,61210.0,1.24895289]
[1723360006652,0.138367,61211.0,61210.0,1.24896687]
[1723360006873,0.138367,61211.0,61210.0,1.23896687]